Cogmind - Beta 9.5 @@@ ROGUE MODE // 2020.04.01 @ 17:09:55 // Winter2019/RPGLIKE Player: IAMCRAIG Result: Destroyed by as-91291 with Assembled Rifle Performance ------------- Evolutions (0) 0 Regions Visited (4) 800 Robots Destroyed (34) 170 Value Destroyed (678) 678 Prototype IDs (22) 440 Alien Tech Used (0) 0 Bonus (328) 328 TOTAL SCORE: 2416 Bonus ------- Follower Combat Kills 28 Aligned with FarCom 300 Cogmind --------- Core Integrity 0/650 Matter 485/500 Energy 63/160 System Corruption 1% Temperature Cool (0) Movement Flying (50) Location -9/Mines Parts ------- > --- POWER (1) -------- Light Nuclear Core > --- PROPULSION (4) --- Flying Fortress v7 > --- UTILITY (4) ------ Improved Heat Sink High-capacity Matter Pod Weapon Cycler > --- WEAPON (3) ------- Proton Missile Launcher Greatsword > --- INVENTORY (1) ---- Gauss Cannon Peak State ------------ > --- POWER ------------ Light Nuclear Core > --- PROPULSION ------- Flying Fortress v7 > --- UTILITY ---------- Improved Heat Sink High-capacity Matter Pod Weapon Cycler > --- WEAPON ----------- Gauss Cannon Greatsword > --- INVENTORY -------- Proton Missile Launcher [Rating: 55] Favorites ----------- Power Light Nuclear Core Engine Ion Engine Power Core Light Nuclear Core Propulsion Light Treads Treads Light Treads Leg Aluminum Leg Wheel Wheel Flight Unit Flying Fortress v7 Utility Improved Heat Sink Device Improved Heat Sink Storage High-capacity Matter Pod Protection Weapon Shielding Weapon Light Cannon Energy Gun Medium Laser Ballistic Gun Assault Rifle Ballistic Cannon Light Cannon Launcher Proton Missile Launcher Slashing Weapon Greatsword Build | -11 -10 -10 -10 -9 ------- Run | Scr Mat Min Exi Min Slots Evolved 8 | 4 1 . 2 1 Power . | . . . . . Propulsion 3 | 3 . . . . Utility 3 | 1 1 . . 1 Weapon 2 | . . . 2 . Parts Attached 27 | 7 12 . 2 6 Power 2 | 1 1 . . . Engine 1 | 1 . . . . Core 1 | . 1 . . . Reactor . | . . . . . Propulsion 10 | 4 5 . 1 . Treads 3 | 2 1 . . . Leg 3 | 1 2 . . . Wheel 3 | 1 2 . . . Hover . | . . . . . Flight 1 | . . . 1 . Utility 8 | . 5 . 1 2 Device 4 | . 3 . . 1 Storage 3 | . 1 . 1 1 Processor . | . . . . . Hackware . | . . . . . Protection 1 | . 1 . . . Artifact . | . . . . . Weapon 7 | 2 1 . . 4 Energy Gun 1 | 1 . . . . Energy Cannon . | . . . . . Ballistic Gun 1 | 1 . . . . Ballistic Cannon 2 | . 1 . . 1 Launcher 2 | . . . . 2 Special Weapon . | . . . . . Impact Weapon . | . . . . . Slashing Weapon 1 | . . . . 1 Piercing Weapon . | . . . . . Special Melee Weapon . | . . . . . Unidentified Prototypes . | . . . . . Parts Lost . | . . . . . Power . | . . . . . Propulsion . | . . . . . Utility . | . . . . . Weapon . | . . . . . Highest Loss Streak . | . . . . . Average Slot Usage (%) 89 | . 94 100 76 62 Engine 1 | . 3 . . . Core 9 | . 8 11 10 8 Treads 26 | . 32 33 15 . Leg 2 | . 4 . . . Wheel 9 | . 11 11 5 . Flight 1 | . . . 5 8 Device 14 | . 8 22 20 17 Storage 8 | . 7 11 8 8 Protection 1 | . 3 . . . Ballistic Gun 3 | . 6 . . . Ballistic Cannon 7 | . 5 11 10 7 Slashing Weapon 1 | . . . . 8 Naked Turns . | . . . . . Heaviest Build 25 | 7 14 14 14 25 Greatest Support 77 | 45 65 65 77 77 Greatest Overweight (x) 1 | . 1 . . . Average Overweight (x) . | . . . . . Largest Inventory Capacity 1 | . . . 1 1 Average Capacity . | . . . . 1 Most Carried 1 | . . . 1 1 Average Carried . | . . . . . Final Capacity 1 | . . . 1 1 Final Carried 1 | . . . 1 1 Class Distribution -------------------- 55% | Mutant 30% | Scavenger-Mutant 14% | Gladiator Dominant Class ---------------- Mutant | -10/Materials Scavenger-Mutant | -10/Mines Mutant | -10/Exiles Gladiator | -9/Mines Resources | -11 -10 -10 -10 -9 ----------- Run | Scr Mat Min Exi Min Matter Collected 1053 | 270 340 324 31 88 Remotely . | . . . . . Salvage Created 851 | 61 357 251 . 182 Parts 65 | 1 47 11 . 6 Haulers Intercepted 2 | . 2 . . . Recyclers Shooed 1 | . 1 . . . Parts Field Recycled . | . . . . . Retrieved Matter . | . . . . . Parts Self-Destructed . | . . . . . Prevented . | . . . . . Kills | -11 -10 -10 -10 -9 ------- Run | Scr Mat Min Exi Min Combat Hostiles Destroyed 20 | . 8 4 . 8 Melee 1 | . . . . 1 Guns 5 | . 5 . . . Cannons 8 | . 3 4 . 1 AOE 5 | . . . . 5 Classes Destroyed 10 | 1 7 . . 2 Worker 2 | . 1 . . 1 Builder 3 | . 3 . . . Tunneler 2 | . 2 . . . Hauler 2 | . 2 . . . Recycler 4 | 1 1 2 . . Watcher 1 | . 1 . . . Swarmer 3 | . 3 . . . Grunt 11 | . 5 4 . 2 Duelist 1 | . . . . 1 Assembled 5 | . . . . 5 Best Kill Streak 5 | 1 4 3 . 5 Combat Bots Only 5 | . 2 2 . 5 Max Kills in Single Turn 3 | 1 1 1 . 3 Gunslinging . | . . . . . Exploded 3 | . . . . 3 Melee 1 | . . . . 1 Uniques/NPCs Destroyed . | . . . . . Combat | -11 -10 -10 -10 -9 -------- Run | Scr Mat Min Exi Min Damage Taken 1418 | . 738 223 . 457 Core 1121 | . 577 184 . 360 Absorbed by Shields . | . . . . . Redirected to Core 901 | . 445 134 . 322 Core Remaining (%) 100 | 100 . . . . Volleys Fired 133 | 7 84 34 . 8 Largest 1 | 1 1 1 . 1 Hottest 50 | 50 35 35 . 48 Shots Fired 133 | 7 84 34 . 8 Gun 61 | 7 54 . . . Cannon 67 | . 30 34 . 3 Launcher 5 | . . . . 5 Special . | . . . . . Kinetic 121 | . 84 34 . 3 Thermal 7 | 7 . . . . Explosive . | . . . . . Electromagnetic 5 | . . . . 5 Robot Hit Streak 12 | 2 12 11 . 6 Robot Miss Streak 3 | 1 3 3 . 1 Penetration Max . | . . . . . Secondary Targets . | . . . . . Shots Hit Robots 84 | 5 50 22 . 7 Core Hits 49 | 2 21 9 . 17 Critical Hits 3 | . 1 1 . 1 Critical Kills 1 | . 1 . . . Critical Parts Destroyed 2 | . . 1 . 1 Melee Attacks 8 | . . . . 8 Impact . | . . . . . Slashing 8 | . . . . 8 Piercing . | . . . . . Sneak Attacks 1 | . . . . 1 Combat Hostiles . | . . . . . Follow-up Attacks . | . . . . . Damage Inflicted 2099 | 75 833 441 . 750 Guns 569 | 75 494 . . . Cannons 840 | . 312 441 . 87 Explosions 405 | . . . . 405 Melee 258 | . . . . 258 Ramming 27 | . 27 . . . Kinetic 1334 | . 806 441 . 87 Thermal 75 | 75 . . . . Explosive . | . . . . . Electromagnetic 405 | . . . . 405 Impact . | . . . . . Slashing 258 | . . . . 258 Piercing . | . . . . . Highest Corruption 1 | . 1 1 1 1 Average Corruption 1 | . 1 1 1 1 Corruption Purged . | . . . . . Effects 8 | . 2 2 2 2 Message Errors 5 | . 1 1 2 1 Energy Discharges 2 | . 1 . . 1 Targeting Errors 1 | . . 1 . . Overload Shots . | . . . . . Overflow Damage 125 | . . . . 125 Projectiles 3 | . . . . 3 Explosions . | . . . . . Melee 122 | . . . . 122 Knockbacks 16 | . 4 9 . 3 Impact . | . . . . . Kinetic 13 | . 4 7 . 2 Secondary 3 | . . 2 . 1 Self-Inflicted Damage 42 | . . . . 42 Shots 2 | . . . . 2 Rammed 15 | . 15 . . . Targets Rammed 17 | . 17 . . . Kicked . | . . . . . Crushed 2 | . 2 . . . Highest Temperature 70 | 70 . . . 9 Average Temperature 30 | 36 . . . 6 Received Heat Transfer 508 | . 312 126 . 70 Siege Activations . | . . . . . Robots Corrupted . | . . . . . Combat Hostiles . | . . . . . Parts Fried 1 | . . . . 1 Impact Corruptions 1 | . . . . 1 Robots Melted . | . . . . . Combat Hostiles . | . . . . . Parts Melted . | . . . . . Heat Transferred 222 | 222 . . . . Parts Sabotaged . | . . . . . Parts Stolen . | . . . . . Parts Stripped . | . . . . . Power Chain Reactions . | . . . . . Missiles Intercepted . | . . . . . Alert | -11 -10 -10 -10 -9 ------- Run | Scr Mat Min Exi Min Peak Influence 244 | 5 244 216 . 224 Average Influence 105 | 1 125 94 . 84 Maximum Alert Level 1 | . 1 1 . 1 Low Security (%) 86 | 100 83 90 . 86 Level 1 13 | . 16 9 . 13 Level 2 . | . . . . . Level 3 . | . . . . . Level 4 . | . . . . . Level 5 . | . . . . . High Security . | . . . . . Max Security . | . . . . . Squads Dispatched 1 | . 1 . . . Investigation 1 | . 1 . . . Extermination . | . . . . . Reinforcement . | . . . . . Assault . | . . . . . Garrison . | . . . . . Intercept . | . . . . . Construction Impeded . | . . . . . Haulers Reinforced . | . . . . . Stealth | -11 -10 -10 -10 -9 --------- Run | Scr Mat Min Exi Min Distress Signals 2 | . 2 . . . Communications Jammed . | . . . . . Distress Signals . | . . . . . Times Spotted 54 | . 20 4 . 30 Peak Tracking Total 19 | . 5 2 . 19 Tactical Retreats 4 | . 2 . . 2 Traps | -11 -10 -10 -10 -9 ------- Run | Scr Mat Min Exi Min Traps Triggered 2 | . 2 . . . Indirectly . | . . . . . Trap Hack Attempts . | . . . . . Triggered . | . . . . . Disarmed . | . . . . . Reprogrammed 6 | . 6 . . . Reused 1 | . 1 . . . Traps Extracted . | . . . . . Installed 3 | . . 3 . . Triggered 1 | . 1 . . . Machines | -11 -10 -10 -10 -9 ---------- Run | Scr Mat Min Exi Min Machines Disabled 11 | . 4 4 . 3 Max in Single Turn 1 | . 1 1 . 1 Machines Sabotaged . | . . . . . Garrisons Compromised . | . . . . . Overloaded Fab Kills . | . . . . . Fab Network Shutdowns . | . . . . . Hacking | -11 -10 -10 -10 -9 --------- Run | Scr Mat Min Exi Min Machines Accessed 10 | . 8 . 1 1 Terminals 6 | . 6 . . . Fabricators . | . . . . . Repair Stations . | . . . . . Recycling Units 2 | . 2 . . . Scanalyzers . | . . . . . Garrison Access . | . . . . . Total Hacks 37 | . 35 . 1 1 Successful 25 | . 23 . 1 1 Failed 12 | . 12 . . . Catastrophic . | . . . . . Database Lockouts . | . . . . . Manual 25 | . 24 . 1 . Terminals 29 | . 29 . . . Fabricators . | . . . . . Repair Stations . | . . . . . Recycling Units 6 | . 6 . . . Scanalyzers . | . . . . . Garrison Access . | . . . . . Terminal Hacks 10 | . 8 . 1 1 Robot Analysis 2 | . 2 . . . Open Door 1 | . . . . 1 Locate Traps 1 | . 1 . . . Reprogram Traps 1 | . 1 . . . Recall Reinforcements 1 | . 1 . . . Hauler Manifests 1 | . 1 . . . Registered Components 1 | . 1 . . . Zone Layout 1 | . 1 . . . EX-Prototype ID Bank 1 | . . . 1 . Fabricator Hacks . | . . . . . Repair Station Hacks . | . . . . . Recycling Unit Hacks 2 | . 2 . . . Report Inventory 2 | . 2 . . . Scanalyzer . | . . . . . Garrison Access Hacks . | . . . . . Unauthorized Hacks 30 | . 30 . . . Terminals 11 | . 11 . . . Track 1 | . 1 . . . Assimilate 1 | . 1 . . . Botnet 6 | . 6 . . . Detonate 1 | . 1 . . . Disrupt 1 | . 1 . . . Operators 1 | . 1 . . . Fabricators . | . . . . . Repair Stations . | . . . . . Recycling Units 2 | . 2 . . . Reject 1 | . 1 . . . Tunnel 1 | . 1 . . . Scanalyzers . | . . . . . Garrison Access . | . . . . . Data Cores Recovered . | . . . . . Used . | . . . . . Hacking Detections 7 | . 7 . . . Full Trace Events 1 | . 1 . . . Feedback Events . | . . . . . Feedback Blocked . | . . . . . Robot Schematics Acquired . | . . . . . Robots Built . | . . . . . Matter . | . . . . . Time . | . . . . . Total Robot Build Rating . | . . . . . Part Schematics Acquired . | . . . . . Parts Built . | . . . . . Matter . | . . . . . Time . | . . . . . Total Part Build Rating . | . . . . . Parts Repaired . | . . . . . Time . | . . . . . Parts Recycled . | . . . . . Recycled Matter . | . . . . . Retrieved Matter . | . . . . . Retrieved Components . | . . . . . Parts Scanalyzed . | . . . . . Part Schematics Acquired . | . . . . . Parts Damaged . | . . . . . Bothacking | -11 -10 -10 -10 -9 ------------ Run | Scr Mat Min Exi Min Used RIF Installer . | . . . . . Robots Hacked . | . . . . . Non-combat . | . . . . . Combat . | . . . . . Robot Hacks Applied . | . . . . . Relay Couplers Released . | . . . . . Robots Rewired . | . . . . . Allies Hacked . | . . . . . Hacks Repelled . | . . . . . Allies | -11 -10 -10 -10 -9 -------- Run | Scr Mat Min Exi Min Total Allies 3 | . . . . 3 Largest Group 3 | . . . . 3 Highest-Rated Group 40 | . . . . 40 Highest-Rated Ally 16 | . . . . 16 Total Orders . | . . . . . Ally Attacks 12 | . . . . 12 Total Damage 151 | . . . . 151 Kills 4 | . . . . 4 Allies Corrupted . | . . . . . Allies Melted . | . . . . . Intel | -11 -10 -10 -10 -9 ------- Run | Scr Mat Min Exi Min Robot Analysis Total 2 | . 2 . . . Derelict Logs Recovered 3 | . . 2 . 1 Drone Launches . | . . . . . Drone Recoveries . | . . . . . Exploration | -11 -10 -10 -10 -9 ------------- Run | Scr Mat Min Exi Min Turns Passed 2037 | 58 965 504 203 307 Spaces Moved 2231 | 53 848 527 324 479 Core 270 | 46 224 . . . Treads 100 | 5 92 3 . . Legs 1 | . 1 . . . Wheels 1175 | 2 531 524 118 . Hover . | . . . . . Flight 685 | . . . 206 479 Fastest Speed 50 | 50 50 80 50 50 Average Speed 70 | 61 81 80 60 50 Slowest Speed 160 | 160 160 160 80 50 Overloaded Moves . | . . . . . Propulsion Burnouts . | . . . . . Robots Hopped . | . . . . . Cave-ins Triggered . | . . . . . Exploration Rate (%) 68 | 4 90 97 70 83 Regions Visited 4 Branch Regions 3 Pre-discovered Areas 2 | . 1 1 . . Known Exits Taken . | . . . . . Unknown Exits Taken 4 | 1 1 1 1 . Scrap Searched 3 | . . 2 . 1 Spaces Dug . | . . . . . Terrain Destroyed 6 | . . . . 6 Melee . | . . . . . Projectile . | . . . . . AOE 6 | . . . . 6 Actions | -11 -10 -10 -10 -9 --------- Run | Scr Mat Min Exi Min Total 2521 | 67 1028 572 330 524 Wait 62 | . 46 4 . 12 Move 2227 | 52 847 526 323 479 Hop . | . . . . . Pick Up 2 | . . . . 2 Fast Attach 25 | 7 12 . 2 4 Attach 1 | . . . . 1 Detach 2 | . . . 1 1 Swap 1 | . . . . 1 Drop 17 | 1 7 . 4 5 Fire 133 | 7 84 34 . 8 Melee 8 | . . . . 8 Ram . | . . . . . Kick . | . . . . . Crush 17 | . 17 . . . Escape Stasis . | . . . . . Rewire . | . . . . . Trap 3 | . . 3 . . Miscellaneous 23 | . 15 5 . 3 Route ------- -11/Scrapyard -10/Materials (discovered 4 exits: [*Mat x3] / [*Min]) -10/Mines (discovered 3 exits: [*Mat x2] / *Exi) -10/Exiles -9/Mines (discovered 2 exits: [*Mat x2]) History --------- Turn | Location | Event 4 | -11/Scrapyard | Upgraded with Propulsion slot (x3) 4 | -11/Scrapyard | Upgraded with Utility slot (x1) 7 | -11/Scrapyard | Discovered new exit (range 15) 59 | -11/Scrapyard | Entered Materials 179 | -10/Materials | Discovered new exit (range 13) 300 | -10/Materials | Core integrity fell below 50% 313 | -10/Materials | Build established: Mutant 434 | -10/Materials | Discovered new exit (range 11) 515 | -10/Materials | Discovered new exit (range 16) 695 | -10/Materials | Discovered new exit (range 7) 915 | -10/Materials | Reached level 2 999 | -10/Materials | Upgraded with Utility slot (x1) 1024 | -10/Materials | Entered Mines 1185 | -10/Mines | Discovered new exit (range 13) 1289 | -10/Mines | Found a hidden stash of uninstalled traps 1291 | -10/Mines | Build established: Scavenger-Mutant 1434 | -10/Mines | Learned 4 Materials zone layouts 1448 | -10/Mines | Learned location of Zion (-7) 1468 | -10/Mines | Discovered new exit (range 11) 1524 | -10/Mines | Deemed a non-threat by the Exiles lab entrance 1525 | -10/Mines | Discovered new exit (range 5) 1528 | -10/Mines | Entered Exiles 1530 | -10/Exiles | Reached level 3 1548 | -10/Exiles | Met 8R-AWN 1562 | -10/Exiles | Met EX-HEX 1585 | -10/Exiles | Met EX-BIN 1597 | -10/Exiles | Aligned with FarCom system 1597 | -10/Exiles | Given EX-Vault access code 1617 | -10/Exiles | Opened EX-Vault 1625 | -10/Exiles | Found Flying Fortress v7 1639 | -10/Exiles | Warned to stay clear of 0b10 Research branches 1666 | -10/Exiles | Upgraded with Weapon slot (x2) 1686 | -10/Exiles | Met EX-DEC 1726 | -10/Exiles | Discovered new exit (range 12) 1731 | -10/Exiles | Left Exiles lab with Flying Fortress v7 1731 | -10/Exiles | Entered Mines 1734 | -9/Mines | Met a Derelict who couldn't figure out how to use a Trap Extractor 1815 | -9/Mines | Learned Materials emergency access door positions 1910 | -9/Mines | Found a damaged Exp. Sensor Array with a note attached 1915 | -9/Mines | Found Prototype Device 1924 | -9/Mines | Discovered new exit (range 16) 1933 | -9/Mines | Assisted by bots powering up and referring to "LRC-V3" 1955 | -9/Mines | Discovered new exit (range 11) 1984 | -9/Mines | Reached level 4 1997 | -9/Mines | Upgraded with Utility slot (x1) 2018 | -9/Mines | Assembled infested the area 2023 | -9/Mines | Core integrity fell below 20% 2038 | -9/Mines | Destroyed by as-91291 with Assembled Rifle Last Messages --------------- 01989_ Protomatter-5 decays. 01990_ Acquired 20 matter. 01991_ Used Protomatter to restore core integrity (+15, depleted) 01992_ S-10 Pest destroyed. 01994_ K-01 Serf collects debris. 01994_ Used Protomatter to restore core integrity (+42, depleted) 01997_ Upgraded: Utility Slot (+1) 01998_ K-01 Serf collects debris. 02010_ Searching scrap... 02010_ Found 31 Matter. 02010_ Found Imp. Hover Unit. 02010_ Found Heat Sink. 02010_ Found 29 Matter. 02013_ 3DBMX>A,2Q